bitfinex/quotes_SOLUSD_20240906
["timestamp","ask_amount","ask_price","bid_price","bid_amount"]
[1725660757742,69.2,124.78,124.71,1.74637319]
[1725660758026,71.20451764,124.78,124.7,1.74637319]
[1725660758739,71.20451764,124.78,124.69,1.74637319]
[1725660758937,71.20451764,124.78,124.7,1.74637319]
[1725660759137,71.20451764,124.78,124.69,1.74637319]
[1725660759343,71.20451764,124.78,124.7,1.74637319]
[1725660759535,71.20451764,124.78,124.69,1.74637319]
[1725660759735,71.20451764,124.78,124.7,1.74637319]
[1725660759939,71.20451764,124.78,124.69,1.74637319]
[1725660760243,71.20451764,124.78,124.7,1.74715068]
[1725660760828,71.20451764,124.78,124.69,1.74715068]
[1725660761028,71.20451764,124.78,124.7,1.74715068]
[1725660761747,71.20451764,124.78,124.68,21.9573]
[1725660761748,71.20451764,124.78,124.69,1.74715068]
[1725660761950,71.20451764,124.78,124.7,1.74715068]
[1725660761951,69.2,124.78,124.7,1.74715068]
[1725660762152,69.2,124.78,124.71,2.20248636]
[1725660762441,410.2159,124.8,124.72,1.74715068]
[1725660762752,410.2159,124.8,124.73,1.74715068]
[1725660763043,404.1,124.8,124.74,15.7499]
[1725660764847,2.00415669,124.79,124.74,15.7499]
[1725660765054,404.1,124.8,124.74,15.7499]
[1725660765355,2.00419192,124.79,124.74,15.7499]
[1725660765847,404.1,124.8,124.74,15.7499]
[1725660768632,412.1129,124.8,124.74,15.7499]
[1725660768832,24.2,124.78,124.71,15.7499]
[1725660769134,2.00457014,124.77,124.72,1.74766227]
[1725660769533,2.00457014,124.77,124.71,15.7499]
[1725660769745,2.00457014,124.77,124.72,1.74799206]
[1725660769948,26.20455541,124.78,124.72,1.74799206]
[1725660770657,71.20438945,124.79,124.72,1.74799206]
[1725660772738,71.20438945,124.79,124.71,15.7499]
[1725660772936,15.2387,124.81,124.73,8.18025231]
[1725660772937,24.2,124.81,124.73,8.18025231]
[1725660773529,24.2,124.81,124.74,1.74675231]
[1725660773740,26.2040103,124.81,124.74,1.74675231]
[1725660773944,12.60021094,124.8,124.75,1.74675231]
[1725660774129,26.20437186,124.79,124.73,6.4335]
[1725660774331,24.2,124.79,124.73,6.4335]
[1725660774556,24.2,124.79,124.73,8.18025231]
[1725660774735,24.2,124.79,124.73,6.4335]
[1725660774937,24.2,124.79,124.73,8.18025231]
[1725660775136,24.2,124.79,124.73,6.4335]
[1725660775444,24.2,124.79,124.73,8.18025231]
[1725660775646,24.2,124.79,124.73,6.4335]
[1725660775840,24.2,124.79,124.73,8.18025231]
[1725660776148,24.2,124.79,124.73,6.4335]
[1725660776953,24.2,124.79,124.73,8.17979248]
[1725660777661,24.2,124.79,124.73,6.4335]
[1725660777961,24.2,124.79,124.73,8.17979248]
[1725660778173,24.2,124.79,124.73,6.4335]
[1725660778337,24.2,124.79,124.73,8.17979248]
[1725660778537,24.2,124.79,124.73,6.4335]
[1725660778744,24.2,124.79,124.73,8.17979248]
[1725660779041,24.2,124.79,124.73,6.4335]
[1725660779441,24.2,124.79,124.73,8.17979248]
[1725660779640,24.2,124.79,124.73,6.4335]
[1725660779840,24.2,124.79,124.73,8.17979248]
[1725660780041,24.2,124.79,124.73,6.4335]
[1725660780263,24.2,124.79,124.73,8.17979248]
[1725660780437,24.2,124.79,124.73,6.4335]
[1725660780638,24.2,124.79,124.73,8.17979248]
[1725660780848,24.2,124.79,124.73,6.4335]
[1725660781050,24.2,124.79,124.73,8.17979248]
[1725660781356,24.2,124.79,124.73,6.4335]
[1725660781555,26.20423066,124.79,124.73,6.4335]
[1725660781762,24.2,124.77,124.72,1.74629248]
[1725660782058,24.2,124.77,124.71,15.7499]
[1725660782059,26.20453419,124.77,124.71,15.7499]
[1725660782256,26.20453419,124.77,124.72,1.74607548]
[1725660782443,26.20453419,124.77,124.71,15.7499]
[1725660783461,71.13446785,124.78,124.71,28.35011094]
[1725660783760,24.13,124.8,124.73,12.60021094]
[1725660783960,2.00393969,124.79,124.71,15.7499]
[1725660784146,24.13,124.78,124.71,15.7499]
[1725660784333,2.00446464,124.77,124.71,15.7499]
[1725660784536,26.13445703,124.78,124.71,15.7499]
[1725660785463,24.13,124.79,124.72,12.60021094]
[1725660785633,26.13428389,124.79,124.72,12.60021094]
[1725660785833,2.00428389,124.79,124.72,12.60021094]
[1725660786034,404.03,124.8,124.72,12.60021094]
[1725660786641,2.00410211,124.79,124.72,12.60021094]
[1725660786849,404.03,124.8,124.72,12.60021094]
[1725660787452,2.00424621,124.79,124.72,12.60021094]
[1725660787652,24.13,124.78,124.72,12.60021094]
[1725660787862,45.0,124.79,124.72,12.60021094]
[1725660788047,24.13,124.79,124.72,12.60021094]
[1725660788861,26.13424317,124.79,124.72,12.60021094]
[1725660789653,24.13,124.79,124.72,12.60021094]
[1725660790653,24.13,124.8,124.72,12.60021094]
[1725660791569,26.13414633,124.8,124.72,12.60021094]
[1725660791749,2.00415452,124.79,124.72,12.60021094]
[1725660793873,2.00415452,124.79,124.73,5.32591683]
[1725660794959,2.00415452,124.79,124.72,12.60021094]
[1725660796768,26.13415299,124.8,124.73,5.32556502]
[1725660796982,2.00415299,124.79,124.72,12.60021094]
[1725660797473,32.1445,124.78,124.71,15.7499]
[1725660797647,24.13,124.76,124.71,15.7499]
[1725660797847,71.13490804,124.75,124.71,15.7499]
[1725660798953,71.13490804,124.75,124.68,15.1924]
[1725660800167,47.00490804,124.75,124.68,15.1924]
[1725660800379,2.00490804,124.75,124.68,15.1924]
[1725660801654,379.9,124.76,124.68,15.1924]
[1725660802559,2.00488956,124.75,124.68,15.1924]
[1725660805168,2.00489088,124.76,124.69,12.60021094]
[1725660806765,2.00489088,124.76,124.68,15.1924]
[1725660806989,2.00489088,124.76,124.68,27.79261094]
[1725660807860,26.13489088,124.76,124.68,27.79261094]
[1725660808882,2.00489088,124.76,124.68,27.79261094]
[1725660811586,2.00489088,124.76,124.68,15.1924]
[1725660811883,24.13,124.75,124.68,27.79261094]
[1725660812900,26.13489088,124.76,124.68,27.79261094]
[1725660813189,69.13,124.75,124.68,15.1924]
[1725660813364,2.00498558,124.74,124.68,15.1924]
[1725660815687,2.00513692,124.73,124.68,15.1924]
[1725660815874,24.13,124.72,124.68,15.1924]
[1725660816195,26.13527828,124.72,124.68,15.1924]
[1725660816780,69.13,124.71,124.65,15.5152]
[1725660817081,24.13,124.72,124.65,15.5152]
[1725660817282,24.13,124.72,124.66,12.60021094]
[1725660817675,402.0725,124.78,124.69,21.8573]
[1725660817884,14.60491048,124.77,124.69,21.8573]
[1725660818106,26.13500126,124.76,124.69,21.8573]
[1725660818672,402.0725,124.78,124.69,34.45751094]
[1725660818970,379.9,124.78,124.69,34.45751094]
[1725660819174,45.0,124.77,124.69,34.45751094]
[1725660820586,71.13465196,124.77,124.69,34.45751094]
[1725660821303,2.00467192,124.76,124.69,34.45751094]
[1725660821686,2.00467192,124.76,124.69,21.8573]
[1725660821895,2.00467192,124.76,124.69,34.45751094]
[1725660823288,45.0,124.77,124.69,34.45751094]
[1725660823604,47.00462582,124.77,124.69,34.45751094]
[1725660824802,379.9,124.78,124.71,12.60021094]
[1725660825897,2.00457043,124.77,124.69,21.8573]
[1725660826070,47.00476174,124.77,124.69,21.8573]
[1725660826269,47.00476174,124.77,124.7,12.60021094]
[1725660827307,45.0,124.77,124.7,12.60021094]
[1725660827994,47.0045738,124.77,124.7,12.60021094]
[1725660831774,45.0,124.77,124.7,12.60021094]
[1725660832175,379.9,124.78,124.7,12.60021094]
[1725660833283,2.00446403,124.77,124.7,12.60021094]
[1725660833575,2.00450115,124.76,124.7,12.60021094]
[1725660835293,47.00465753,124.77,124.7,12.60021094]
[1725660836992,2.00463779,124.76,124.7,12.60021094]
[1725660837189,47.00464489,124.77,124.7,12.60021094]
[1725660837782,2.00463822,124.76,124.7,12.60021094]
[1725660838200,47.00463647,124.77,124.7,12.60021094]
[1725660838780,404.03,124.78,124.7,12.60021094]
[1725660839105,2.00452586,124.77,124.7,12.60021094]
[1725660839486,32.1467,124.74,124.69,15.5152]
[1725660839796,47.00518459,124.73,124.69,15.5152]
[1725660839998,71.13518459,124.73,124.66,6.0572]
[1725660840186,83.73539553,124.73,124.66,22.0027]
[1725660841395,59.60539553,124.73,124.66,22.0027]
[1725660841601,379.9,124.74,124.68,12.60021094]
[1725660841794,379.9,124.74,124.68,22.46263792]
[1725660841998,379.9,124.74,124.72,12.60021094]
[1725660842698,379.9,124.74,124.71,1.74910026]
[1725660843201,427.4887,124.8,124.71,1.74910026]
[1725660843383,71.13435288,124.79,124.71,1.74910026]
[1725660843590,26.13435288,124.79,124.71,1.74910026]
[1725660843793,26.13435288,124.79,124.72,1.74910026]
[1725660844003,26.13435288,124.79,124.71,1.74910026]
[1725660844203,26.13435288,124.79,124.72,1.74910026]
[1725660844415,26.13435288,124.79,124.71,1.74910026]
[1725660844710,26.13435288,124.79,124.72,1.74910026]
[1725660844907,26.13435288,124.79,124.71,1.74910026]
[1725660844908,69.13,124.78,124.71,1.74910026]
[1725660845086,2.00459533,124.77,124.71,1.74910026]
[1725660846309,2.00459523,124.76,124.71,1.74910026]
[1725660846607,2.00473488,124.77,124.71,1.74910026]
[1725660846985,69.13,124.78,124.71,1.74910026]
[1725660846986,2.00470289,124.76,124.71,1.74910026]
[1725660848383,2.00469964,124.77,124.71,1.74910026]
[1725660849006,379.9,124.78,124.71,14.3493112]
[1725660849303,21.89418839,124.82,124.73,12.60021094]
[1725660849514,17.30567745,124.82,124.74,15.6357]
[1725660849802,2.0041515,124.81,124.74,15.6357]
[1725660849987,26.1341515,124.81,124.74,15.6357]
[1725660851710,26.13414912,124.81,124.74,15.6357]
[1725660852209,45.0,124.8,124.74,15.6357]
[1725660853213,71.13414912,124.81,124.74,15.6357]
[1725660853511,459.04654912,124.81,124.74,15.6357]
[1725660855714,24.13,124.79,124.74,15.6357]
[1725660855888,45.0,124.78,124.74,15.6357]
[1725660863516,45.0,124.78,124.74,20.96774521]
[1725660863721,45.0,124.78,124.74,15.6357]
[1725660864089,379.9,124.79,124.74,20.96774521]
[1725660865311,404.03,124.81,124.74,20.96774521]
[1725660865611,45.0,124.8,124.74,20.96774521]
[1725660866794,47.00413623,124.8,124.74,20.96774521]
[1725660867494,2.00413324,124.79,124.74,20.96774521]
[1725660867911,2.00413324,124.79,124.74,15.6357]
[1725660868112,2.00413324,124.79,124.74,20.96774521]
[1725660868606,2.00413324,124.79,124.74,20.96662096]
[1725660869108,2.00413324,124.79,124.73,7.0787575]
[1725660869413,2.00413324,124.79,124.72,7.0787575]
[1725660869598,24.13,124.77,124.73,5.33092096]
[1725660869804,47.00462059,124.76,124.72,5.33092096]
[1725660870203,47.00462059,124.76,124.73,5.33092096]
[1725660870399,47.00462059,124.76,124.72,5.33092096]
[1725660870601,47.00462059,124.76,124.73,5.33092096]
[1725660870813,47.00462059,124.76,124.72,5.33092096]
[1725660870994,47.00462059,124.76,124.73,5.33092096]
[1725660871189,47.00462059,124.76,124.72,5.33092096]
[1725660871411,47.00462059,124.76,124.73,5.33092096]
[1725660871620,45.0,124.76,124.72,5.33092096]
[1725660871893,45.0,124.76,124.73,5.33092096]
[1725660872189,45.0,124.76,124.72,5.33092096]
[1725660872394,45.0,124.76,124.73,5.33092096]
[1725660872605,45.0,124.76,124.72,5.33092096]
[1725660872811,47.00467491,124.76,124.73,5.33092096]
[1725660873022,47.00467491,124.76,124.72,5.33092096]
[1725660873200,47.00467491,124.76,124.73,5.33092096]
[1725660873518,45.0,124.76,124.72,5.33092096]
[1725660874513,45.0,124.76,124.73,5.33092096]
[1725660874697,45.0,124.76,124.72,5.33092096]
[1725660874896,45.0,124.76,124.73,5.33363275]
[1725660875215,45.0,124.76,124.72,5.33363275]
[1725660875416,379.9,124.77,124.72,5.33363275]
[1725660875592,379.9,124.77,124.73,5.33363275]
[1725660875789,379.9,124.77,124.72,7.08146929]
[1725660875995,379.9,124.77,124.73,5.33363275]
[1725660876392,379.9,124.77,124.74,5.33363275]
[1725660876594,379.9,124.77,124.73,5.33363275]
[1725660876821,379.9,124.77,124.74,5.33363275]
[1725660877118,379.9,124.77,124.73,5.33363275]
[1725660877317,44.74381094,124.79,124.74,5.33363275]
[1725660877516,45.0,124.78,124.72,1.74783654]
[1725660877705,45.0,124.78,124.73,5.33286688]
[1725660877907,45.0,124.78,124.72,1.74783654]
[1725660878109,45.0,124.78,124.73,5.33306393]
[1725660878624,45.0,124.78,124.74,5.33306393]
[1725660878810,45.0,124.78,124.73,7.08090047]
[1725660879008,45.0,124.78,124.74,5.33306393]
[1725660879209,45.0,124.78,124.72,7.08090047]
[1725660879409,45.0,124.78,124.73,5.33306393]
[1725660880603,45.0,124.78,124.73,5.33761991]
[1725660880820,45.0,124.78,124.73,5.33699928]
[1725660881018,69.13,124.78,124.73,5.33699928]
[1725660881205,46.74959149,124.77,124.73,5.33699928]
[1725660881411,47.00473541,124.76,124.72,1.74783654]
[1725660881612,47.00473541,124.76,124.72,5.33961396]
[1725660881919,26.13474105,124.77,124.72,5.33961396]
[1725660882224,26.13474105,124.77,124.71,1.74783654]
[1725660882431,2.00472041,124.76,124.72,5.33927581]
[1725660882608,2.00472041,124.76,124.71,1.74783654]
[1725660882803,2.00472041,124.76,124.72,5.3389675]
[1725660883115,2.00472041,124.76,124.71,1.74783654]
[1725660883321,24.13,124.78,124.72,5.3386089]
[1725660883521,24.13,124.78,124.71,1.74783654]
[1725660883522,24.13,124.78,124.73,5.3386089]
[1725660883723,24.13,124.78,124.72,5.3386089]
[1725660884424,26.13451284,124.79,124.72,5.33879324]
[1725660884606,45.0,124.78,124.73,5.33879324]
[1725660885214,379.9,124.8,124.74,5.33642834]
[1725660885416,379.9,124.8,124.75,20.99212834]
[1725660887424,379.9,124.8,124.75,17.40353654]
[1725660887819,379.9,124.8,124.75,15.6557]
[1725660888018,379.9,124.8,124.75,17.40353654]
[1725660888209,379.9,124.8,124.75,15.6557]
[1725660888411,379.9,124.8,124.75,17.40353654]
[1725660888805,379.9,124.8,124.75,15.6557]
[1725660889019,379.9,124.8,124.75,17.40353654]
[1725660889218,379.9,124.8,124.75,15.6557]
[1725660889418,36.73021094,124.81,124.75,17.40353654]
[1725660889723,24.13,124.79,124.75,15.6557]
[1725660889927,45.0,124.78,124.75,20.99552035]
[1725660890305,26.1342097,124.79,124.75,15.6557]
[1725660890509,38.73442016,124.79,124.75,20.99558026]
[1725660890821,38.73442016,124.79,124.74,5.33988026]
[1725660891018,38.73442016,124.79,124.73,10.52713697]
[1725660891224,38.73442016,124.79,124.74,7.09123941]
[1725660891424,38.73442016,124.79,124.74,1.75071787]
[1725660892626,38.73442016,124.79,124.75,5.34040617]
[1725660893327,38.73442016,124.79,124.74,1.75071787]
[1725660893634,38.73442016,124.79,124.75,5.33985386]
[1725660893832,36.73021094,124.79,124.74,1.75065869]
[1725660894130,38.73457781,124.79,124.75,5.33993097]
[1725660894316,36.73021094,124.79,124.75,5.33993097]
[1725660894520,2.00429099,124.8,124.75,5.33993097]
[1725660894713,45.0,124.8,124.74,1.75065869]
[1725660894909,45.0,124.8,124.75,5.33996189]
[1725660895114,2.00425162,124.8,124.74,8.77638411]
[1725660895315,426.90425162,124.8,124.75,5.33975642]
[1725660895510,2.0042282,124.79,124.74,1.75064327]
[1725660895812,2.0042282,124.79,124.75,5.33994622]
[1725660896011,2.0042282,124.79,124.74,1.75064327]
[1725660896218,379.9,124.8,124.75,5.3400044]
[1725660896419,379.9,124.8,124.76,7.08973784]
[1725660896732,36.73021094,124.81,124.76,1.74973344]
[1725660896934,38.73424745,124.81,124.76,1.74973344]
[1725660897130,46.74634745,124.81,124.74,1.74973344]
[1725660897337,46.74634745,124.81,124.75,7.08826018]
[1725660897523,69.13,124.8,124.76,5.33852674]
[1725660897830,69.13,124.8,124.74,8.77638411]
[1725660898032,69.13,124.8,124.75,7.08825157]
[1725660898220,69.13,124.8,124.76,5.33833013]
[1725660898421,69.13,124.8,124.75,1.74992144]
[1725660898640,69.13,124.8,124.76,5.33841048]
[1725660898831,69.13,124.8,124.75,1.74992144]
[1725660899017,69.13,124.8,124.76,5.33826603]
[1725660899217,69.13,124.8,124.75,1.74992144]
[1725660899417,2.00430067,124.79,124.76,5.3383011]
[1725660899635,71.13418849,124.8,124.75,7.08822254]
[1725660899955,71.13418849,124.8,124.76,5.3383011]
[1725660900233,71.13418849,124.8,124.75,5.33834675]
[1725660900420,71.13418849,124.8,124.76,5.33834675]
[1725660900620,71.13418849,124.8,124.75,7.08828404]
[1725660900826,69.13,124.8,124.76,5.33834675]
[1725660901329,449.03,124.8,124.76,5.33834675]
[1725660901630,449.03,124.8,124.75,7.08828404]
[1725660901813,449.03,124.8,124.76,5.33834675]
[1725660902013,449.03,124.8,124.75,7.08816801]
[1725660902334,24.13,124.78,124.76,5.33780559]
[1725660902511,26.13445706,124.78,124.74,1.74975389]
[1725660902837,26.13445706,124.78,124.74,7.09086337]
[1725660903043,26.13445706,124.78,124.73,7.08992127]
[1725660903337,26.13445706,124.78,124.73,1.74975389]
[1725660903723,26.13445706,124.78,124.74,5.33984794]
[1725660903925,26.13445706,124.78,124.73,1.74975389]
[1725660904431,24.13,124.76,124.73,1.74975389]
[1725660904630,83.73514401,124.75,124.72,5.3417263]
[1725660904817,83.73514401,124.75,124.71,7.09148019]
[1725660905148,83.73514401,124.75,124.69,8.77305644]
[1725660905149,463.63514401,124.75,124.7,7.09369945]
[1725660905438,463.63514401,124.75,124.7,1.74975389]
[1725660905828,463.63514401,124.75,124.68,15.2228]
[1725660905829,36.73021094,124.71,124.68,24.00629765]
[1725660906040,36.73021094,124.71,124.69,5.34510353]
[1725660906215,36.73021094,124.71,124.69,1.75300237]
[1725660906417,38.73587573,124.71,124.69,1.75300237]
[1725660906632,38.73587573,124.71,124.68,5.34510353]
[1725660906841,38.73587573,124.71,124.67,7.0981059]
[1725660907021,38.73587573,124.71,124.68,5.34510353]
[1725660907217,38.73587573,124.71,124.67,5.34510353]
[1725660907423,38.73587573,124.71,124.66,7.0981059]
[1725660907646,38.73587573,124.71,124.67,5.34510353]
[1725660908719,379.9,124.72,124.67,5.34510353]
[1725660908915,379.9,124.72,124.64,27.82301094]
[1725660909113,379.9,124.72,124.67,5.3443853]
[1725660909316,379.9,124.72,124.66,7.09755942]
[1725660909515,379.9,124.72,124.67,5.3443853]
[1725660909744,379.9,124.72,124.68,5.3443853]
[1725660909920,379.9,124.72,124.66,1.75317412]
[1725660909921,379.9,124.72,124.67,5.3443853]
[1725660910321,394.3651,124.74,124.67,5.3443853]
[1725660910526,18.87701094,124.76,124.68,5.3443853]
[1725660910827,20.8817836,124.76,124.69,5.3443853]
[1725660911035,45.0117836,124.76,124.69,5.3443853]
[1725660911235,45.0117836,124.76,124.68,5.3443853]
[1725660911433,45.0117836,124.76,124.69,5.3443853]
[1725660911629,8.28157266,124.76,124.69,5.3443853]
[1725660911946,378.9,124.77,124.7,20.5671853]
[1725660912139,378.9,124.77,124.7,15.2228]
[1725660912445,2.00476392,124.76,124.7,20.56248158]
[1725660912755,2.00476392,124.76,124.7,15.2228]
[1725660913042,2.00476392,124.76,124.7,20.56248158]
[1725660913240,2.00476392,124.76,124.7,15.2228]
[1725660913241,83.73497486,124.76,124.7,15.2228]
[1725660913721,59.60497486,124.76,124.7,15.2228]
[1725660913926,57.60021094,124.76,124.7,15.2228]
[1725660914427,45.0,124.76,124.7,15.2228]
[1725660914741,378.9,124.77,124.7,15.2228]
[1725660914930,2.00475393,124.76,124.7,15.2228]
[1725660915133,47.00475393,124.76,124.7,15.2228]
[1725660915346,59.60496487,124.76,124.7,15.2228]
[1725660916323,438.50496487,124.76,124.7,15.2228]
[1725660917527,425.90475393,124.76,124.7,15.2228]
[1725660917944,423.9,124.76,124.7,15.2228]
[1725660918144,378.9,124.76,124.7,15.2228]
[1725660918353,403.03,124.76,124.7,15.2228]
[1725660918548,2.00479236,124.75,124.7,15.2228]
[1725660921534,403.03,124.76,124.7,15.2228]
[1725660923053,2.00485523,124.75,124.7,15.2228]
[1725660923254,24.13,124.74,124.68,5.33808059]
[1725660923548,24.13,124.74,124.67,20.90948059]
[1725660923549,2.00527862,124.73,124.67,20.90948059]
[1725660923852,71.13527862,124.73,124.67,20.90948059]
[1725660924040,71.13527862,124.73,124.67,15.5714]
[1725660924233,14.60550845,124.75,124.67,20.90948059]
[1725660924549,22.62170845,124.75,124.67,20.90948059]
[1725660924734,45.0,124.74,124.67,20.90948059]
[1725660924940,2.00529742,124.73,124.67,20.91143287]
[1725660925339,2.00529742,124.73,124.67,15.5714]
[1725660926142,2.00529742,124.73,124.67,20.91143287]
[1725660926433,24.13,124.72,124.67,20.91143287]
[1725660926757,81.73021094,124.71,124.65,11.70453287]
[1725660926964,2.00572247,124.7,124.65,6.3645]
[1725660927254,2.00572247,124.7,124.64,15.5714]
[1725660930655,12.60021094,124.69,124.64,15.5714]
[1725660931344,391.50021094,124.69,124.64,15.5714]
[1725660933836,378.9,124.69,124.64,15.5714]
[1725660936063,391.50021094,124.69,124.64,15.5714]
[1725660937364,12.60021094,124.69,124.64,15.5714]
[1725660937567,14.60611225,124.69,124.64,15.5714]
[1725660938064,378.9,124.7,124.64,15.5714]
[1725660939065,2.0057106,124.69,124.64,15.5714]
[1725660939264,378.9,124.7,124.64,15.5714]
[1725660939655,378.9,124.7,124.64,28.17161094]
[1725660943169,26.90281094,124.74,124.64,28.17161094]
[1725660943363,47.00542059,124.73,124.64,28.17161094]
[1725660946176,12.60021094,124.72,124.64,28.17161094]
[1725660946464,2.0055129,124.71,124.64,28.17161094]
[1725660949070,2.0054855,124.7,124.64,15.5714]
[1725660949657,38.73569644,124.7,124.64,15.5714]
[1725660949862,45.0,124.69,124.64,15.5714]
[1725660950654,51.5249,124.69,124.61,3.50177372]
[1725660950858,14.60623825,124.68,124.61,1.75088686]
[1725660951060,45.0,124.67,124.61,1.75088686]
[1725660951266,2.00627977,124.66,124.61,1.75088686]
[1725660951467,2.00629742,124.65,124.61,1.75088686]
[1725660951770,2.00646093,124.65,124.61,1.75088686]
[1725660952269,47.00646093,124.65,124.61,1.75088686]
[1725660953259,47.00646093,124.65,124.59,15.3736]
[1725660955565,71.13646093,124.65,124.59,15.3736]
[1725660957059,378.9,124.68,124.59,15.3736]
[1725660957375,378.9,124.68,124.6,12.60021094]
[1725660957876,378.9,124.68,124.6,13.05901088]
[1725660958174,378.9,124.68,124.62,12.60021094]
[1725660958486,56.5249,124.73,124.58,6.3256]
[1725660958487,15.1267,124.75,124.66,12.60021094]
[1725660958665,15.1267,124.75,124.67,15.3736]
[1725660959557,2.00523367,124.74,124.67,15.3736]
[1725660961675,47.00523367,124.74,124.67,15.3736]
[1725660964482,47.00513351,124.74,124.67,15.3736]
[1725660964983,378.9,124.78,124.69,31.52015367]
[1725660965563,378.9,124.78,124.7,15.2701]
[1725660965760,15.1534,124.81,124.71,31.97548127]
[1725660965967,410.42015367,124.83,124.75,31.52015367]
[1725660965968,378.9,124.83,124.75,31.52015367]
[1725660966274,639.2,124.88,124.77,31.52015367]
[1725660966488,2.00297448,124.87,124.79,15.2701]
[1725660967284,31.52015367,124.9,124.79,15.2701]
[1725660967285,31.52015367,124.9,124.79,46.79025367]
[1725660967486,31.52015367,124.9,124.81,31.52015367]
[1725660967487,2.00267589,124.9,124.81,31.52015367]
[1725660967707,3.12485325,124.95,124.83,31.52015367]
[1725660967876,6.1475,124.97,124.85,31.52015367]
[1725660968073,2.00174139,124.97,124.89,31.52015367]
[1725660968374,31.52015367,125.03,124.91,31.52015367]
[1725660969005,39.52075367,124.99,124.88,15.2701]
[1725660969170,31.52015367,124.99,124.88,15.2701]
[1725660969366,2.00131279,124.99,124.89,76.52015367]
[1725660969572,2.00119859,124.98,124.89,31.52015367]
[1725660969984,2.00119859,124.98,124.88,15.2701]
[1725660970480,10.00289859,124.98,124.88,15.2701]
[1725660970681,47.00155389,124.97,124.88,15.2701]
[1725660971373,8.0032,124.95,124.88,15.2701]
[1725660971586,10.00575589,124.94,124.88,15.2701]
[1725660971784,10.00575589,124.94,124.84,6.0192]
[1725660971785,8.0051,124.92,124.84,6.0192]
[1725660972092,2.00219334,124.91,124.84,6.0192]
[1725660972392,45.0,124.91,124.84,6.0192]
[1725660972582,53.0059,124.91,124.84,6.0192]
[1725660972784,53.0059,124.91,124.83,15.2701]
[1725660972785,2.00236937,124.9,124.83,15.2701]
[1725660972986,47.00236937,124.9,124.83,15.2701]
[1725660973383,2.00236937,124.9,124.83,15.2701]
[1725660974302,8.007,124.89,124.83,15.2701]
[1725660974874,2.00266865,124.88,124.77,15.2701]
[1725660975078,8.0093,124.86,124.77,15.2701]
[1725660975281,378.9,124.89,124.78,31.52015367]
[1725660975777,55.0105263,124.88,124.78,31.52015367]
[1725660975984,55.0105263,124.88,124.78,39.31519023]
[1725660976185,53.0077,124.88,124.78,39.31519023]
[1725660976485,378.9,124.89,124.78,39.31519023]
[1725660977182,378.9,124.89,124.79,45.0]
[1725660977403,378.9,124.89,124.8,39.31519023]
[1725660977605,378.9,124.89,124.81,45.0]
[1725660977897,378.9,124.89,124.79,45.0]
[1725660978881,2.00269709,124.88,124.79,45.0]
[1725660979074,2.00269709,124.88,124.78,45.0]
[1725660979385,386.907,124.89,124.79,0.45148171]
[1725660979590,8.0064,124.9,124.79,0.45148171]
[1725660979893,45.0,124.89,124.79,0.45148171]
[1725660980099,45.0,124.89,124.79,39.76667194]
[1725660980281,47.00269299,124.9,124.8,0.45144553]
[1725660980800,8.0071,124.89,124.79,39.31519023]
[1725660981104,10.00919299,124.9,124.79,39.31519023]
[1725660981283,10.00919299,124.9,124.8,45.0]
[1725660982292,45.0,124.89,124.79,39.31519023]
[1725660982501,47.00259044,124.9,124.8,45.0]
[1725660983192,378.9,124.91,124.8,45.0]
[1725660983787,378.9,124.91,124.82,6.2653]
[1725660984080,8.0039,124.94,124.83,84.765037]
[1725660984294,10.00588309,124.94,124.83,84.765037]
[1725660984484,10.00588309,124.94,124.83,84.31519023]
[1725660984485,2.00198216,124.93,124.83,84.31519023]
[1725660984681,2.00197928,124.93,124.83,84.31519023]
[1725660985202,8.0055,124.92,124.83,84.31519023]
[1725660985401,15.1534,124.97,124.85,39.31519023]
[1725660985576,17.15501867,124.97,124.86,45.0]
[1725660986085,8.003,124.96,124.86,45.0]
[1725660986283,10.00488983,124.95,124.84,15.2337]
[1725660986507,8.0039,124.94,124.85,45.0]
[1725660986709,2.00192562,124.93,124.84,15.2337]
[1725660987185,10.00665317,124.93,124.84,15.2337]
[1725660987503,55.00665317,124.93,124.84,15.2337]
[1725660987803,24.13,124.92,124.84,15.2337]